Cogmind - Beta 14 @@@ ROGUE MODE // 2024.11.05 @ 02:47:00 Player: laeb2 Result: Destroyed by L-31 Rogue with Katana Performance ------------- Evolutions (0) 0 Regions Visited (4) 800 Robots Destroyed (14) 70 Value Destroyed (319) 319 Prototype IDs (1) 20 Alien Tech Used (0) 0 Bonus (0) 0 TOTAL SCORE: 1209 Bonus ------- None Cogmind --------- Core Integrity 0/250 Matter 284/300 Energy 138/140 System Corruption 1% Temperature Warm (188) Movement Treading (160) Location -9/Mines Parts ------- > --- POWER (1) -------- Light Deuterium Engine > --- PROPULSION (2) --- Light Treads Light Treads > --- UTILITY (2) ------ Signal Interpreter > --- WEAPON (2) ------- Field Laser Light Assault Rifle > --- INVENTORY (5) ---- Light Nuclear Core Small Storage Unit Structural Scanner Light Armor Plating Particle Gun Peak State ------------ > --- POWER ------------ Light Nuclear Core > --- PROPULSION ------- Light Treads Light Treads > --- UTILITY ---------- Experimental Sensor Array Signal Interpreter > --- WEAPON ----------- Particle Gun Light Assault Rifle > --- INVENTORY -------- Light Ion Engine Small Storage Unit Structural Scanner Light Armor Plating Particle Gun [Rating: 18] Favorites ----------- Power Light Deuterium Engine Engine Light Deuterium Engine Power Core Light Nuclear Core Propulsion Light Treads Treads Light Treads Utility Signal Interpreter Device Structural Scanner Storage Small Storage Unit Processor Signal Interpreter Protection Light Armor Plating Weapon Light Assault Rifle Energy Gun Field Laser Ballistic Gun Light Assault Rifle Build | -11 -10 -10 -10 -9 ------- Run | Yrd Mat Min Exi Min Slots Evolved . | . . . . . Power . | . . . . . Propulsion . | . . . . . Utility . | . . . . . Weapon . | . . . . . Parts Attached 20 | 6 2 11 . 1 Power 4 | 1 . 3 . . Engine 3 | 1 . 2 . . Core 1 | . . 1 . . Reactor . | . . . . . Propulsion 4 | 2 . 2 . . Treads 4 | 2 . 2 . . Leg . | . . . . . Wheel . | . . . . . Hover . | . . . . . Flight . | . . . . . Utility 8 | 1 2 4 . 1 Device 3 | . 1 2 . . Storage 1 | 1 . . . . Processor 2 | . 1 1 . . Hackware . | . . . . . Protection 2 | . . 1 . 1 Artifact . | . . . . . Weapon 4 | 2 . 2 . . Energy Gun 2 | . . 2 . . Energy Cannon . | . . . . . Ballistic Gun 2 | 2 . . . . Ballistic Cannon . | . . . . . Launcher . | . . . . . Special Weapon . | . . . . . Impact Weapon . | . . . . . Slashing Weapon . | . . . . . Piercing Weapon . | . . . . . Special Melee Weapon . | . . . . . Unidentified Prototypes 1 | . . 1 . . Parts Lost 3 | . . 2 . 1 Power . | . . . . . Propulsion 1 | . . 1 . . Utility 1 | . . . . 1 Weapon 1 | . . 1 . . Highest Loss Streak 1 | . . 1 . 1 To Critical Strikes . | . . . . . Average Slot Usage (%) 99 | . 97 99 100 99 Engine 11 | . 14 6 14 14 Core 2 | . . 7 . . Treads 27 | . 28 27 28 28 Device 3 | . 10 5 . . Storage 4 | . 14 6 . . Processor 10 | . . 8 14 14 Protection 9 | . . 7 14 13 Energy Gun 10 | . . 10 14 14 Ballistic Gun 17 | . 28 17 14 14 Peak Build Rating 18 | 6 8 18 11 11 Average Rating 9 | 4 6 9 11 10 On Entrance 7 | . 6 7 11 11 Naked Turns . | . . . . . Heaviest Build 15 | 13 14 15 12 12 Greatest Support 40 | 40 40 40 40 40 Greatest Overweight (x) . | . . . . . Average Overweight (x) . | . . . . . Largest Inventory Capacity 8 | 8 8 8 5 5 Average Capacity 5 | 5 8 6 5 5 Most Carried 8 | 5 8 8 5 5 Average Carried 5 | 3 6 6 5 5 Final Capacity 8 | 8 8 5 5 5 Final Carried 8 | 5 8 5 5 5 Class Distribution -------------------- 96% | Mutant 3% | Scavenger-Mutant Dominant Class ---------------- Mutant | -10/Materials Mutant | -10/Mines Mutant | -10/Exiles Mutant | -9/Mines Resources | -11 -10 -10 -10 -9 ----------- Run | Yrd Mat Min Exi Min Matter Collected 550 | 268 59 193 . 30 Remotely . | . . . . . Salvage Created 535 | 54 166 315 . . Parts 32 | 3 11 18 . . Haulers Intercepted 1 | . 1 . . . Recyclers Shooed . | . . . . . Parts Field Recycled . | . . . . . Retrieved Matter . | . . . . . Parts Self-Destructed . | . . . . . Prevented . | . . . . . Kills | -11 -10 -10 -10 -9 ------- Run | Yrd Mat Min Exi Min Combat Hostiles Destroyed 9 | . . 9 . . Guns 9 | . . 9 . . Classes Destroyed 5 | 1 2 2 . . Hauler 1 | . 1 . . . Recycler 2 | 1 1 . . . Watcher 2 | . 2 . . . Swarmer 3 | . . 3 . . Grunt 6 | . . 6 . . Best Kill Streak 3 | 1 1 3 . . Combat Bots Only 3 | . . 3 . . Max Kills in Single Turn 1 | 1 1 1 . . Gunslinging . | . . . . . Exploded . | . . . . . Melee . | . . . . . Uniques/NPCs Destroyed . | . . . . . Combat | -11 -10 -10 -10 -9 -------- Run | Yrd Mat Min Exi Min Hostile Shots Fired 90 | . 7 67 . 16 Missed 21 | . 1 16 . 4 Damage Taken 1013 | . 77 677 . 259 Core 254 | . 13 178 . 63 Absorbed by Shields . | . . . . . Core Remaining (%) 100 | 100 . . . . Volleys Fired 54 | 2 9 38 . 5 Largest 2 | 2 2 2 . 2 Hottest 85 | 40 40 85 . 83 Shots Fired 111 | 4 19 77 . 11 Gun 111 | 4 19 77 . 11 Cannon . | . . . . . Launcher . | . . . . . Special . | . . . . . Kinetic 92 | 4 19 64 . 5 Thermal 19 | . . 13 . 6 Explosive . | . . . . . Electromagnetic . | . . . . . Robot Hit Streak 19 | 3 7 19 . 5 Robot Miss Streak 3 | . 1 3 . 1 Penetration Max . | . . . . . Secondary Targets 2 | . . 2 . . Max Gunslinging Chain 1 | . . 1 . . Shots Hit Robots 76 | 3 13 52 . 8 Core Hits 31 | 2 6 21 . 2 Critical Kills 1 | . 1 . . . Critical Parts Destroyed . | . . . . . Critical Strikes 1 | . 1 . . . Destroy 1 | . 1 . . . Melee Attacks . | . . . . . Impact . | . . . . . Slashing . | . . . . . Piercing . | . . . . . Sneak Attacks . | . . . . . Combat Hostiles . | . . . . . Follow-up Attacks . | . . . . . Damage Inflicted 828 | 32 141 566 . 89 Guns 825 | 32 141 563 . 89 Cannons . | . . . . . Explosions . | . . . . . Melee . | . . . . . Ramming 3 | . . 3 . . Kinetic 629 | 32 141 419 . 37 Thermal 196 | . . 144 . 52 Explosive . | . . . . . Electromagnetic . | . . . . . Impact . | . . . . . Slashing . | . . . . . Piercing . | . . . . . Highest Corruption 1 | . 1 1 1 1 Average Corruption 1 | . 1 1 1 1 Corruption Purged . | . . . . . Corruption Blocked . | . . . . . Effects 13 | . 2 5 4 2 Message Errors 3 | . 1 . 2 . Matter Fused 2 | . . . 1 1 Heat Flow Errors 1 | . . 1 . . Energy Discharges 3 | . . 3 . . Misfires 3 | . 1 1 . 1 Alerts 1 | . . . 1 . Overload Shots . | . . . . . Overflow Damage . | . . . . . Projectiles . | . . . . . Explosions . | . . . . . Melee . | . . . . . Knockbacks . | . . . . . Impact . | . . . . . Kinetic . | . . . . . Secondary . | . . . . . Self-Inflicted Damage . | . . . . . Shots . | . . . . . Rammed 2 | . . 2 . . Targets Rammed 2 | . . 2 . . Kicked . | . . . . . Crushed . | . . . . . Highest Temperature 339 | . . 339 . 182 Average Temperature 92 | . . 96 . 65 Received Heat Transfer 435 | . 48 351 . 36 Siege Activations . | . . . . . Robots Corrupted . | . . . . . Combat Hostiles . | . . . . . Parts Fried . | . . . . . Impact Corruptions . | . . . . . Robots Melted . | . . . . . Combat Hostiles . | . . . . . Parts Melted 1 | . . 1 . . Heat Transferred 444 | . . 333 . 111 Parts Sabotaged . | . . . . . Parts Stolen . | . . . . . Parts Stripped . | . . . . . Power Chain Reactions . | . . . . . Alert | -11 -10 -10 -10 -9 ------- Run | Yrd Mat Min Exi Min Peak Influence 226 | 5 54 226 . . Initial 11 | . 3 11 . . Average 47 | 1 29 104 . . Maximum Alert Level 1 | . . 1 . . Low Security (%) 91 | 100 100 78 . 100 Level 1 8 | . . 21 . . Level 2 . | . . . . . Level 3 . | . . . . . Level 4 . | . . . . . Level 5 . | . . . . . High Security . | . . . . . Max Security . | . . . . . Squads Dispatched 1 | . . 1 . . Investigation 1 | . . 1 . . Extermination . | . . . . . Reinforcement . | . . . . . Assault . | . . . . . Garrison . | . . . . . Intercept . | . . . . . Searches Triggered . | . . . . . Construction Impeded . | . . . . . Haulers Reinforced . | . . . . . Active Scanning Responses . | . . . . . Cargo Convoy Interrupts . | . . . . . Stealth | -11 -10 -10 -10 -9 --------- Run | Yrd Mat Min Exi Min Distress Signals . | . . . . . Communications Jammed . | . . . . . Distress Signals . | . . . . . Times Spotted 19 | . 8 9 . 2 Peak Tracking Total 3 | . 3 3 . 2 Tactical Retreats 1 | . 1 . . . Traps | -11 -10 -10 -10 -9 ------- Run | Yrd Mat Min Exi Min Traps Triggered . | . . . . . Indirectly . | . . . . . Trap Hack Attempts . | . . . . . Triggered . | . . . . . Disarmed . | . . . . . Reprogrammed . | . . . . . Reused . | . . . . . Traps Extracted . | . . . . . Installed . | . . . . . Triggered . | . . . . . Machines | -11 -10 -10 -10 -9 ---------- Run | Yrd Mat Min Exi Min Machines Disabled . | . . . . . Max in Single Turn . | . . . . . Machines Repaired . | . . . . . Machines Dismantled . | . . . . . Machines Sabotaged . | . . . . . Overloaded Fab Kills . | . . . . . Hacking | -11 -10 -10 -10 -9 --------- Run | Yrd Mat Min Exi Min Machines Accessed 10 | . 5 1 4 . Terminals 5 | . 5 . . . Fabricators . | . . . . . Repair Stations . | . . . . . Recycling Units . | . . . . . Scanalyzers . | . . . . . Garrison Access . | . . . . . Total Hacks 25 | . 20 1 4 . Successful 13 | . 8 1 4 . Failed 12 | . 12 . . . Catastrophic 2 | . 2 . . . Database Lockouts . | . . . . . Manual 19 | . 17 . 2 . Terminals 20 | . 20 . . . Fabricators . | . . . . . Repair Stations . | . . . . . Recycling Units . | . . . . . Scanalyzers . | . . . . . Garrison Access . | . . . . . Terminal Hacks 7 | . 2 1 4 . Record 4 | . . . 4 . Open Door 1 | . . 1 . . Branch Access Points 1 | . 1 . . . Zone Layout 1 | . 1 . . . Fabricator Hacks . | . . . . . Repair Station Hacks . | . . . . . Recycling Unit Hacks . | . . . . . Scanalyzer . | . . . . . Garrison Access Hacks . | . . . . . Unauthorized Hacks 6 | . 6 . . . Terminals 6 | . 6 . . . Assimilate 2 | . 2 . . . Botnet 3 | . 3 . . . Operators 1 | . 1 . . . Fabricators . | . . . . . Repair Stations . | . . . . . Recycling Units . | . . . . . Scanalyzers . | . . . . . Garrison Access . | . . . . . Data Cores Recovered . | . . . . . Used . | . . . . . Hacking Detections 5 | . 5 . . . Full Trace Events 3 | . 3 . . . Feedback Events 1 | . 1 . . . Corruption 1 | . 1 . . . Feedback Blocked . | . . . . . Robot Schematics Acquired . | . . . . . Robots Built . | . . . . . Authchips . | . . . . . Time . | . . . . . Total Robot Build Rating . | . . . . . Part Schematics Acquired . | . . . . . Parts Built . | . . . . . Authchips . | . . . . . Time . | . . . . . Total Part Build Rating . | . . . . . Parts Repaired . | . . . . . Time . | . . . . . Parts Recycled . | . . . . . Recycled Matter . | . . . . . Retrieved Matter . | . . . . . Retrieved Components . | . . . . . Parts Scanalyzed . | . . . . . Part Schematics Acquired . | . . . . . Parts Damaged . | . . . . . Bothacking | -11 -10 -10 -10 -9 ------------ Run | Yrd Mat Min Exi Min Used RIF Installer . | . . . . . Robots Hacked . | . . . . . Non-combat . | . . . . . Combat . | . . . . . Robot Hacks Applied . | . . . . . Relay Couplers Released . | . . . . . Fabnet Peak Effective % . | . . . . . Robots Rewired . | . . . . . Allies Hacked . | . . . . . Hacks Repelled . | . . . . . Allies | -11 -10 -10 -10 -9 -------- Run | Yrd Mat Min Exi Min Total Allies 2 | . 1 1 . . Largest Group 1 | . 1 1 1 . Highest-Rated Group 31 | . 10 31 31 . Highest-Rated Ally 31 | . 10 31 31 . Total Orders . | . . . . . Ally Attacks . | . . . . . Total Damage . | . . . . . Kills . | . . . . . Allies Corrupted . | . . . . . Allies Melted . | . . . . . Intel | -11 -10 -10 -10 -9 ------- Run | Yrd Mat Min Exi Min Robot Analysis Total . | . . . . . Derelict Logs Recovered 3 | . . 2 . 1 Drone Launches . | . . . . . Drone Recoveries . | . . . . . Exploration | -11 -10 -10 -10 -9 ------------- Run | Yrd Mat Min Exi Min Turns Passed 2780 | 99 473 718 905 585 Spaces Moved 1485 | 51 229 342 566 297 Core 6 | 6 . . . . Treads 1479 | 45 229 342 566 297 Legs . | . . . . . Wheels . | . . . . . Hover . | . . . . . Flight . | . . . . . Fastest Speed 50 | 50 160 160 160 160 Average Speed 159 | 147 160 160 160 160 Slowest Speed 160 | 160 160 160 160 160 Overloaded Moves . | . . . . . Propulsion Burnouts . | . . . . . Robots Hopped . | . . . . . Cave-ins Triggered . | . . . . . Exploration Rate (%) 55 | 4 40 65 91 79 Regions Visited 4 Branch Regions 3 Pre-discovered Areas 3 | . . 2 . 1 Known Exits Taken 3 | . 1 1 1 . Unknown Exits Taken 1 | 1 . . . . Scrap Searched 3 | . . 2 . 1 Spaces Dug . | . . . . . Terrain Destroyed . | . . . . . Melee . | . . . . . Projectile . | . . . . . AOE . | . . . . . Terrain Rammed . | . . . . . Walls Destroyed . | . . . . . Machines Disabled . | . . . . . Actions | -11 -10 -10 -10 -9 --------- Run | Yrd Mat Min Exi Min Total 1801 | 71 320 446 565 399 Wait 205 | 3 72 34 . 96 Move 1481 | 50 228 341 565 297 Hop . | . . . . . Pick Up 25 | 10 7 8 . . Fast Attach 5 | 1 . 3 . 1 Attach 9 | 5 1 3 . . Detach . | . . . . . Swap 6 | . 1 5 . . Drop 14 | . 2 12 . . Fire 54 | 2 9 38 . 5 Melee . | . . . . . Ram . | . . . . . Kick . | . . . . . Crush 2 | . . 2 . . Escape Stasis . | . . . . . Rewire . | . . . . . Trap . | . . . . . Miscellaneous . | . . . . . Route ------- -11/Scrapyard -10/Materials (discovered 2 exits: *Min x2) -10/Mines (discovered 2 exits: *Mat / *Exi) -10/Exiles -9/Mines (discovered 2 exits: *Mat x2) History --------- Turn | Location | Event 4 | -11/Scrapyard | Discovered new exit (range 15) 100 | -11/Scrapyard | Entered Materials 282 | -10/Materials | Discovered new exit (range 12) 312 | -10/Materials | Build established: Mutant 425 | -10/Materials | Identified exit to Mines 573 | -10/Materials | Entered Mines 730 | -10/Mines | Core integrity fell below 50% 850 | -10/Mines | Discovered new exit (range 11) 851 | -10/Mines | Found a damaged Exp. Sensor Array with a note attached 856 | -10/Mines | Found Prototype Device 869 | -10/Mines | Identified exit to Materials 903 | -10/Mines | Identified Exp. Sensor Array 1038 | -10/Mines | Learned location of Zion (-7) 1046 | -10/Mines | Received a Mining Laser from a helpful Derelict 1143 | -10/Mines | Met a Derelict shopkeep closing up shop 1202 | -10/Mines | Deemed a non-threat by the Exiles lab entrance 1202 | -10/Mines | Discovered new exit (range 5) 1289 | -10/Mines | Identified exit to Exiles 1291 | -10/Mines | Entered Exiles 1291 | -10/Exiles | Found Exiles lab abandoned 1291 | -10/Exiles | Accompanied by 1 ally 2175 | -10/Exiles | Discovered new exit (range 14) 2192 | -10/Exiles | Identified exit to Mines 2196 | -10/Exiles | Entered Mines 2197 | -9/Mines | Assembled infested the area 2251 | -9/Mines | Discovered new exit (range 6) 2257 | -9/Mines | Identified exit to Materials 2268 | -9/Mines | Learned 4 Materials zone layouts 2299 | -9/Mines | Met a Derelict bent on vengeance 2458 | -9/Mines | Learned location of Storage (-8) 2491 | -9/Mines | Discovered exit to Materials (range 8) 2775 | -9/Mines | Core integrity fell below 20% 2781 | -9/Mines | Destroyed by L-31 Rogue with Katana Last Messages --------------- U-05 Engineer builds a Wall. T-07 Excavator is excavating. U-05 Engineer lays Concrete. U-05 Engineer builds a Wall. U-05 Engineer builds a Door. U-05 Engineer lays Concrete. U-05 Engineer builds a Wall. System corrupted: FCS attempts to trigger Field Laser. System corrupted: Field Laser misfires. A derelict is hurriedly installing traps. 6G-X9H(g): "Hehe, this'll put a wrench in their mining defense operations..." 6G-X9H(g) slips into the shadows. System corrupted: Matter fused (-6). Lgt. Armor Plating severed. Acquired Lgt. Armor Plating. Lgt. Armor Plating destroyed. [Achievement: I Think I Know What's Going On] [Achievement: Overachiever] Map ----- +----------------------------------------------------+ | ????????????????????????????????????# | | ????????????????????????????????????# | | ????????????????????????????????????## | | ?????????????????????????????????????### /[ | | ???????????????????????????????????????##% | | ????????????????????????????????????????## | | ?????????????????????????????????????????# | | ??????????????????????????????????????#### | | ?????????????????????????????????????## # | | ?????????????????????????????????????# | | ?????????????????????????????????????# | | ?????????????????????????????????????# % | | ?????????????????????????????????????# | | ?????????????????????????????????????## | | ?????????????????????????????????????## | | ????????????????????????????????????## | | ??????????####?????????????????????## | | ?????????## ??????????????####### | | ?????????# ?????????????## ## | | ?????????# ????????????# | | ??????????# #?#####??????# | | ??????????# ## #??????### | | ??????????# g #????????# ^ | | ??????????# #????????# ## ^ | | ?????????# ###l ##???????# # | | ?????????# ???##@ ##??????# #^ ## | | ?????????# ?????# #??????# # ### | | ????????# ???????# #??????# ^ #?? | | ????????# ????????# #??????####### ##? | | ????????#?????????# #????????????# ## | | ??????????????????# #???????????## | | ??????????????????# ##???????????# | | ??????????????????## #???????###### #### | | ???????????????????## ######### #??? | | ????????????????????# ## ### #??? | | ????????????????????# #?## #?? | | ????????????????????# ######??## | | ????????????????????## #????????# ## | | ?????????????????????# #???????? ##? | | ?????????????????????## #???????? #?? | | ??????????????????????### ???????? #?? | | ????????????????????????## ??????? ##?? | | ?????????????????????????## ?????? #??? | | ??????????????????????????? ????? ##??? | | ??????????????????????????? #???? ##???? | | ??????????????????????????? #???? ?????? | | ???????????????????????????# #???? ?????? | | ????????????????????????????# #??????????? | | ????????????????????????????? ??????????? | | ????????????????????????????? ?????????????? | +----------------------------------------------------+ Best States ------------- Heat Dissipation 39 Energy Generation 14 Energy Capacity 250 Matter Stores 300 Matter Capacity 300 Sight Range 18 Terrain Scan Density 10 Armor Coverage 150 Evasion (%) 40 Recoil Reduction 2 Item Schematics ----------------- None Robot Schematics ------------------ None Fabricated ------------ Nothing Alien Tech Used ----------------- None Achievements -------------- I Think I Know What's Going On Overachiever Challenges ------------ None Game ------ Seed QuantumOvertunedCompactor Manual? 0 Play Time 00:14:47 Cumulative 73.4 hours Start 2024.11.05 @ 02:33:57 End 2024.11.05 @ 02:47:00 Sessions 1 Manual Loads 0 Difficulty Rogue Special Mode None Game No. 88 Rogue 88 Adventurer 0 Explorer 0 Win Type - Total 1 Types 1/0/0/0/0/0/0/0/0 Lore% 50 Gallery% 53 Achievement% 50 Wizard Run 0 Options --------- Layout 1 ASCII 0 Keyboard 0 Movement Mouse Keybinds 0 Fullscreen 1 Font 32/SmallcapsGlow Map View 50x35 Zoom Use 0% Tactical HUD 0 Map Filters NONE Filters NONE Steam 1 RUN: 2097e1f6-abf2-4f9e-bb92-4e2e1504a3c6